bitfinex/quotes_SOLUSD_20240717
["timestamp","ask_amount","ask_price","bid_price","bid_amount"]
[1721222185594,20.0,161.04,161.0,30.0]
[1721222186306,1.24205585,161.03,161.0,30.0]
[1721222186477,20.0,161.04,161.0,30.0]
[1721222186814,21.24205585,161.04,161.0,30.0]
[1721222187175,27.45175585,161.04,161.0,30.0]
[1721222187286,1.24205585,161.03,161.0,30.0]
[1721222188371,16.07205585,161.03,161.0,30.0]
[1721222188572,14.83,161.03,161.0,30.0]
[1721222188772,14.83,161.04,161.0,30.0]
[1721222189976,14.83,161.03,161.0,30.0]
[1721222192888,16.07205585,161.02,161.0,30.0]
[1721222193402,14.83,161.01,161.0,30.0]
[1721222194209,21.0407,161.01,161.0,30.0]
[1721222195306,21.0407,161.01,160.93,21.27433429]
[1721222195307,14.83,161.01,160.94,30.0]
[1721222195513,14.83,160.99,160.94,31.24231966]
[1721222196199,1.24205585,161.01,160.94,46.07231966]
[1721222196405,14.83,161.0,160.94,46.07231966]
[1721222196603,14.83,161.0,160.94,44.83]
[1721222196785,14.83,161.0,160.95,1.24236278]
[1721222196988,16.07205585,161.01,160.97,30.0]
[1721222197209,14.83,161.01,160.97,30.0]
[1721222197381,16.07205585,161.01,160.97,30.0]
[1721222197712,14.83,161.0,160.97,30.0]
[1721222198080,1.24205585,160.99,160.97,30.0]
[1721222198402,16.07205585,161.0,160.97,30.0]
[1721222198716,14.83,161.0,160.97,30.0]
[1721222201493,7.45285585,161.01,160.97,30.0]
[1721222201701,16.07205585,161.01,160.97,30.0]
[1721222203901,14.83,161.0,160.97,30.0]
[1721222204098,1.24205585,160.99,160.97,30.0]
[1721222204493,21.0414,161.0,160.97,30.0]
[1721222204812,14.83,160.99,160.97,30.0]
[1721222205228,22.28395585,160.98,160.97,30.0]
[1721222205519,14.83,160.98,160.97,30.0]
[1721222205702,16.07205585,160.98,160.97,30.0]
[1721222206513,6.0394,161.03,160.97,30.0]
[1721222206514,16.07205585,160.99,160.97,30.0]
[1721222207804,14.83,160.99,160.97,30.0]
[1721222208205,16.07205585,161.0,160.97,30.0]
[1721222209006,21.0419,160.98,160.97,30.0]
[1721222210106,14.83,160.98,160.97,30.0]
[1721222210425,16.07205585,160.98,160.97,30.0]
[1721222211803,14.83,160.98,160.97,30.0]
[1721222217137,21.0419,160.98,160.97,30.0]
[1721222218718,6.2126,160.97,160.93,30.0]
[1721222218926,14.83,160.95,160.93,30.0]
[1721222219112,1.24205585,160.94,160.93,30.0]
[1721222219321,16.07205585,160.95,160.93,30.0]
[1721222219830,13.80740832,161.03,160.93,30.0]
[1721222219831,16.07205585,160.96,160.93,30.0]
[1721222220004,14.83,160.96,160.93,30.0]
[1721222221504,1.24205585,160.95,160.93,30.0]
[1721222222013,14.83,160.96,160.93,30.0]
[1721222222197,16.07205585,160.96,160.93,30.0]
[1721222224011,7.45355585,161.0,160.93,30.0]
[1721222224215,14.83,160.97,160.93,31.24252533]
[1721222224429,14.83,160.98,160.93,31.24252533]
[1721222224723,16.07205585,160.97,160.93,30.0]
[1721222224927,1.24205585,161.0,160.93,30.0]
[1721222225108,14.83,160.98,160.93,30.0]
[1721222225314,14.83,160.98,160.94,1.24253367]
[1721222225515,14.83,160.98,160.94,31.24253367]
[1721222225714,16.07205585,160.98,160.94,31.24253367]
[1721222226229,16.07205585,160.98,160.94,30.0]
[1721222226443,14.83,160.98,160.94,30.0]
[1721222226611,14.83,160.99,160.94,31.24247837]
[1721222226934,21.0414,161.13,160.94,30.0]
[1721222226935,14.83,160.97,160.94,30.0]
[1721222227333,16.07205585,160.97,160.94,30.0]
[1721222228622,14.83,160.96,160.94,30.0]
[1721222229428,16.07205585,160.95,160.94,30.0]
[1721222229817,22.28515585,160.95,160.94,30.0]
[1721222230004,21.0431,160.95,160.94,30.0]
[1721222230939,14.83,160.95,160.94,30.0]
[1721222231146,16.07205585,160.95,160.94,30.0]
[1721222232849,22.28515585,160.95,160.94,30.0]
[1721222233146,6.2144,160.92,160.9,0.8394047]
[1721222233332,16.07205585,160.95,160.9,0.8394047]
[1721222233333,22.28665585,160.91,160.9,0.8394047]
[1721222233537,42.28665585,160.91,160.9,0.8394047]
[1721222234424,73.45795585,160.91,160.9,0.8394047]
[1721222235038,58.62795585,160.91,160.9,0.8394047]
[1721222235433,79.67995585,160.91,160.9,0.8394047]
[1721222236221,6.2163,160.87,160.81,6.49466209]
[1721222236425,14.83,160.83,160.81,6.49466209]
[1721222236733,59.83,160.82,160.81,6.49466209]
[1721222236934,14.83,160.84,160.81,6.49466209]
[1721222237249,59.83,160.83,160.81,6.49466209]
[1721222237435,14.83,160.82,160.81,6.49466209]
[1721222237744,45.0,160.82,160.81,6.49466209]
[1721222238249,14.83,160.83,160.81,6.49466209]
[1721222238925,14.83,160.84,160.81,6.49466209]
[1721222239539,14.83,160.83,160.81,6.49466209]
[1721222239851,1.24205585,160.86,160.82,1.24362031]
[1721222240064,14.83,160.85,160.82,1.24362031]
[1721222240358,14.83,160.86,160.81,6.49466209]
[1721222241038,14.83,160.87,160.82,1.2433455]
[1721222241237,22.5563,160.91,160.82,1.2433455]
[1721222241238,14.83,160.88,160.83,1.24328728]
[1721222241826,1.24205585,160.87,160.81,21.32466209]
[1721222242127,14.83,160.85,160.81,6.49466209]
[1721222242334,14.83,160.83,160.81,6.49466209]
[1721222242543,1.24205585,160.84,160.81,6.49466209]
[1721222242854,16.07205585,160.84,160.81,6.49466209]
[1721222243160,14.83,160.84,160.81,6.49466209]
[1721222243458,1.24205585,160.85,160.81,6.49466209]
[1721222243640,14.83,160.85,160.81,6.49466209]
[1721222243842,45.0,160.84,160.81,6.49466209]
[1721222244251,1.24205585,160.83,160.81,6.49466209]
[1721222244446,16.07205585,160.83,160.81,6.49466209]
[1721222244655,61.07205585,160.82,160.78,15.7876]
[1721222244841,59.83,160.82,160.78,15.7876]
[1721222245142,59.83,160.82,160.77,14.83]
[1721222245335,16.07205585,160.81,160.76,22.56136544]
[1721222245529,45.0,160.8,160.77,1.2439006]
[1721222245733,59.83,160.82,160.77,16.0739006]
[1721222245734,61.07205585,160.82,160.77,16.0739006]
[1721222246170,61.07205585,160.82,160.76,21.31746505]
[1721222246355,61.07205585,160.82,160.77,1.24381636]
[1721222246662,59.83,160.82,160.77,1.24381636]
[1721222246864,1.24205585,160.81,160.77,1.24381636]
[1721222247243,59.83,160.82,160.77,1.24381636]
[1721222247467,59.83,160.82,160.76,21.31746505]
[1721222247468,45.0,160.82,160.76,6.48746505]
[1721222247668,14.83,160.83,160.77,14.83]
[1721222248344,61.07205585,160.82,160.76,21.31746505]
[1721222248545,61.07205585,160.82,160.76,6.48746505]
[1721222248753,14.83,160.81,160.76,6.48746505]
[1721222249065,45.0,160.8,160.76,6.48746505]
[1721222250665,14.83,160.79,160.74,15.7928]
[1721222250854,14.83,160.79,160.74,22.28025951]
[1721222251967,16.07205585,160.8,160.74,37.11025951]
[1721222252265,45.0,160.81,160.74,22.28025951]
[1721222252435,1.24205585,160.8,160.75,14.83]
[1721222253060,59.83,160.81,160.75,14.83]
[1721222253271,1.24205585,160.8,160.74,22.28025951]
[1721222253452,1.24205585,160.8,160.75,14.83]
[1721222253849,59.83,160.81,160.75,14.83]
[1721222254148,1.24205585,160.8,160.74,22.28025951]
[1721222254367,59.83,160.81,160.75,14.83]
[1721222254556,16.07205585,160.8,160.75,14.83]
[1721222254871,45.0,160.79,160.74,22.28025951]
[1721222255038,1.24205585,160.78,160.74,37.11025951]
[1721222255241,45.0,160.79,160.75,1.24408245]
[1721222255653,1.24205585,160.78,160.74,22.28025951]
[1721222255854,59.83,160.79,160.74,23.52429731]
[1721222256059,45.0,160.79,160.74,38.35429731]
[1721222256354,1.24205585,160.78,160.74,21.31745951]
[1721222256555,45.0,160.79,160.75,1.244062]
[1721222256773,14.83,160.77,160.74,6.48745951]
[1721222257069,16.07205585,160.76,160.71,6.48610303]
[1721222257375,61.07205585,160.76,160.71,6.48610303]
[1721222257673,61.07205585,160.76,160.71,21.31610303]
[1721222258045,14.83,160.74,160.71,6.48610303]
[1721222258262,46.24205585,160.73,160.71,6.48610303]
[1721222258645,45.0,160.73,160.71,6.48610303]
[1721222258875,46.24205585,160.73,160.71,6.48610303]
[1721222259052,61.07205585,160.73,160.71,6.48610303]
[1721222259365,61.07205585,160.73,160.64,59.32]
[1721222259366,118.78611416,160.72,160.59,30.45]
[1721222259568,44.63611416,160.72,160.59,15.62]
[1721222259883,14.83,160.69,160.59,15.62]
[1721222260059,14.83,160.69,160.63,14.83]
[1721222260060,46.24205585,160.68,160.63,14.83]
[1721222260376,46.24205585,160.68,160.59,15.62]
[1721222260557,46.24205585,160.68,160.61,6.48544522]
[1721222260558,45.0,160.68,160.61,6.48544522]
[1721222261457,45.0,160.69,160.61,6.48544522]
[1721222262565,1.24205585,160.68,160.61,6.48544522]
[1721222263265,45.0,160.69,160.61,6.48544522]
[1721222264144,1.24205585,160.68,160.61,6.48544522]
[1721222264348,45.0,160.69,160.61,6.48544522]
[1721222264547,1.24205585,160.68,160.61,6.48544522]
[1721222266376,7.46565585,160.68,160.61,6.48544522]
[1721222266552,45.0,160.67,160.61,6.48544522]
[1721222266752,51.2232,160.69,160.62,1.2448754]
[1721222266753,45.0,160.69,160.62,1.2448754]
[1721222266960,45.0,160.69,160.61,6.48544522]
[1721222267159,1.24205585,160.68,160.61,6.48544522]
[1721222267973,7.46595585,160.67,160.61,6.48544522]
[1721222268279,51.2243,160.66,160.61,6.48544522]
[1721222268457,45.0,160.66,160.61,6.48544522]
[1721222269360,1.24205585,160.71,160.61,6.48544522]
[1721222269562,46.24205585,160.71,160.61,6.48544522]
[1721222269755,20.0,160.7,160.61,6.48544522]
[1721222269963,46.24205585,160.69,160.61,6.48544522]
[1721222271057,26.223,160.7,160.61,6.48544522]
[1721222271058,1.24205585,160.7,160.61,6.48544522]
[1721222271254,7.46485585,160.7,160.61,6.48544522]
[1721222271475,6.2231,160.69,160.61,6.48544522]
[1721222271975,6.2228,160.7,160.61,6.48544522]
[1721222272205,1.24205585,160.69,160.61,6.48544522]
[1721222272483,52.46525585,160.69,160.61,6.48544522]
[1721222272657,51.2232,160.69,160.61,6.48544522]
[1721222273570,45.0,160.69,160.61,6.48544522]
[1721222273964,1.24205585,160.74,160.66,15.9471]
[1721222274183,1.24205585,160.76,160.67,3.39311601]
[1721222274488,7.46255585,160.76,160.67,32.14880132]
[1721222274784,6.2209,160.75,160.67,30.0]
[1721222274983,1.24205585,160.76,160.67,30.0]
[1721222275272,1.24205585,160.78,160.66,15.9471]
[1721222275883,21.24205585,160.78,160.66,15.9471]
[1721222276085,36.79165585,160.78,160.66,15.9471]
[1721222276263,15.5516,160.76,160.67,1.24443388]
[1721222276461,6.2212,160.74,160.66,15.9471]
[1721222276768,45.0,160.73,160.67,1.2443997]
[1721222277078,7.46295585,160.75,160.66,15.9471]
[1721222277278,46.24205585,160.74,160.66,15.9471]
[1721222277453,45.0,160.74,160.66,15.9471]
[1721222279088,51.2212,160.74,160.66,15.9471]
[1721222279581,45.0,160.74,160.66,15.9471]
[1721222280078,45.0,160.74,160.67,1.24429368]
[1721222280275,45.0,160.75,160.7,14.88]
[1721222280583,16.12205585,160.76,160.7,14.88]
[1721222281481,1.24205585,160.76,160.66,15.9471]
[1721222281778,21.1012,160.74,160.68,14.88]
[1721222282177,6.2217,160.73,160.68,14.88]
[1721222282382,14.88,160.71,160.66,15.9471]
[1721222282577,21.1021,160.72,160.66,30.8271]
[1721222282774,7.46445585,160.71,160.66,30.8271]
[1721222282966,22.34445585,160.71,160.66,15.9471]
[1721222283161,21.1024,160.71,160.66,15.9471]
[1721222283575,14.88,160.71,160.66,30.8271]
[1721222283972,86.7735,160.76,160.66,30.8271]
[1721222283973,22.34405585,160.72,160.66,30.8271]
[1721222284270,14.88,160.69,160.64,14.88]
[1721222284576,14.88,160.69,160.63,21.36756531]
[1721222284762,1.24205585,160.7,160.64,16.12468695]
[1721222284964,45.0,160.71,160.65,16.12465743]
[1721222285160,1.24205585,160.7,160.65,14.88]
[1721222285582,59.88,160.71,160.66,1.24462514]
[1721222285882,16.12205585,160.7,160.64,14.88]
[1721222286083,16.12205585,160.7,160.63,6.4860872]
[1721222286084,14.88,160.7,160.65,16.12468756]
[1721222286459,21.1033,160.69,160.63,6.4860872]
[1721222286778,14.88,160.68,160.63,6.4860872]
[1721222287385,46.24205585,160.71,160.64,16.12470512]
[1721222287689,46.24205585,160.71,160.63,6.4860872]
[1721222287690,14.88,160.7,160.65,16.12460857]
[1721222287887,20.0,160.76,160.66,1.24462377]
[1721222287888,7.46325585,160.74,160.66,1.24462377]
[1721222288182,7.46325585,160.74,160.63,6.4860872]
[1721222288183,1.24205585,160.74,160.63,6.4860872]
[1721222288396,14.88,160.69,160.64,14.88]
[1721222288592,16.12205585,160.7,160.64,14.88]
[1721222288888,21.1031,160.69,160.64,14.88]
[1721222289060,1.24205585,160.68,160.63,6.4860872]
[1721222289259,14.88,160.67,160.63,6.4860872]
[1721222290683,16.12205585,160.67,160.63,6.4860872]
[1721222292286,45.0,160.68,160.64,1.24496093]
[1721222292491,45.0,160.69,160.64,1.24496093]
[1721222292689,1.24205585,160.68,160.64,1.24496093]
[1721222293287,1.24205585,160.68,160.63,21.3660872]
[1721222294004,1.24205585,160.67,160.63,6.4860872]
[1721222294181,1.24205585,160.67,160.59,6.6628]
[1721222294182,14.88,160.64,160.58,14.88]
[1721222294795,14.88,160.64,160.58,21.36629707]
[1721222295091,14.88,160.64,160.59,14.88]
[1721222295294,14.88,160.62,160.57,16.2276]
[1721222295681,21.1059,160.62,160.57,16.2276]
[1721222296073,1.24205585,160.61,160.57,16.2276]
[1721222296680,1.24205585,160.61,160.56,14.88]
[1721222296881,16.12205585,160.62,160.57,1.24531274]
[1721222297176,1.24205585,160.62,160.57,14.88]
[1721222297389,46.24205585,160.62,160.57,14.88]
[1721222298175,16.3529,160.66,160.57,14.88]
[1721222298485,1.24205585,160.66,160.61,14.88]
[1721222298685,22.34635585,160.66,160.6,14.88]
[1721222298882,14.88,160.65,160.59,14.88]
[1721222299192,1.24205585,160.64,160.59,14.88]
[1721222299379,14.88,160.65,160.6,16.12514309]
[1721222299586,14.88,160.65,160.61,1.24507114]
[1721222299790,14.88,160.65,160.55,6.57953369]
[1721222299988,14.88,160.65,160.59,14.88]
[1721222300293,7.46745585,160.64,160.59,14.88]
[1721222300595,16.12205585,160.64,160.59,14.88]
[1721222301305,16.12205585,160.64,160.58,14.88]
[1721222301306,14.88,160.63,160.58,14.88]
[1721222301483,1.24205585,160.63,160.58,14.88]
[1721222301687,46.24205585,160.63,160.58,14.88]
[1721222302215,14.88,160.62,160.55,6.57953369]
[1721222302497,14.88,160.62,160.56,14.88]
[1721222303095,1.24205585,160.61,160.56,14.88]
[1721222305510,21.107,160.59,160.55,0.1]
[1721222305688,1.24205585,160.58,160.55,0.1]
[1721222305889,52.46975585,160.58,160.55,0.1]
[1721222306111,6.2269,160.6,160.55,0.1]
[1721222306394,61.12205585,160.59,160.55,0.1]
[1721222306603,1.24205585,160.61,160.56,14.88]
[1721222306798,16.12205585,160.6,160.55,14.98]
[1721222307100,45.0,160.59,160.55,14.98]
[1721222307403,1.24205585,160.58,160.55,0.1]
[1721222307914,46.24205585,160.59,160.55,14.98]
[1721222308704,41.1062,160.62,160.56,16.1255974]
[1721222308900,46.24205585,160.61,160.56,14.88]
[1721222309201,45.0,160.61,160.56,14.88]
[1721222309395,45.0,160.61,160.57,14.88]
[1721222309601,45.0,160.61,160.55,0.1]
[1721222309602,21.5363,160.64,160.59,14.88]
[1721222309913,6.0451,160.68,160.6,1.24529375]
[1721222310087,1.24205585,160.67,160.61,1.24499177]
[1721222310286,1.24205585,160.68,160.64,14.88]
[1721222310481,1.24205585,160.68,160.62,14.88]
[1721222310482,1.24205585,160.67,160.62,14.88]
[1721222310716,7.46625585,160.67,160.62,14.88]
[1721222310883,6.2243,160.66,160.61,14.88]
[1721222311085,1.24205585,160.65,160.61,14.88]
[1721222311297,1.24205585,160.64,160.6,14.88]
[1721222312001,1.24205585,160.68,160.61,16.12514049]
[1721222312208,1.24205585,160.67,160.56,10.0]
[1721222312403,1.24205585,160.67,160.56,29.8]
[1721222312593,6.224,160.67,160.56,29.8]
[1721222312793,45.0,160.66,160.56,29.8]
[1721222313107,6.2247,160.65,160.56,29.8]
[1721222313305,45.0,160.64,160.56,29.8]
[1721222313507,45.0,160.66,160.56,29.8]
[1721222313709,1.24205585,160.65,160.56,29.8]
[1721222314010,1.24205585,160.64,160.56,29.8]
[1721222315000,1.24205585,160.65,160.56,29.8]
[1721222315607,1.24205585,160.64,160.56,29.8]
[1721222316105,1.24205585,160.64,160.57,30.0]
[1721222316486,46.24205585,160.64,160.57,30.0]
[1721222316691,1.24205585,160.63,160.57,30.0]
[1721222317410,6.2259,160.62,160.57,30.0]
[1721222317615,46.24205585,160.61,160.55,16.6126]
[1721222317796,1.24205585,160.65,160.55,16.6126]
[1721222318098,1.24205585,160.68,160.56,41.0451787]
[1721222318316,1.24205585,160.67,160.56,59.8]
[1721222319293,21.24205585,160.67,160.57,1.24501587]
[1721222319598,45.0,160.66,160.57,1.24501587]
[1721222319908,1.24205585,160.65,160.56,59.8]
[1721222320111,45.0,160.66,160.57,1.24504792]
[1721222320313,45.0,160.66,160.56,79.8]
[1721222320997,45.0,160.66,160.57,1.24498003]
[1721222321300,46.24205585,160.66,160.58,30.0]
[1721222321508,6.2247,160.65,160.58,30.0]
[1721222321711,52.46645585,160.66,160.59,1.24504442]
[1721222322413,46.24205585,160.66,160.56,29.8]
[1721222324995,7.46775585,160.63,160.57,30.0]
[1721222325188,45.0,160.62,160.57,30.0]
[1721222325398,1.24205585,160.61,160.57,30.0]
[1721222325590,45.0,160.62,160.57,30.0]
[1721222325591,1.24205585,160.6,160.57,30.0]
[1721222326001,1.24205585,160.62,160.57,30.0]
[1721222326389,1.24205585,160.62,160.55,0.1]
[1721222326792,21.24205585,160.62,160.55,0.1]
[1721222327315,45.0,160.61,160.55,0.1]
[1721222327521,6.2274,160.58,160.55,0.1]
[1721222327813,46.24205585,160.57,160.55,0.1]
[1721222328707,45.0,160.57,160.55,0.1]
[1721222329190,1.24205585,160.56,160.55,0.1]
[1721222330016,7.47025585,160.56,160.55,0.1]
[1721222330194,52.47025585,160.56,160.55,0.1]
[1721222330403,45.0,160.56,160.55,0.1]
[1721222331103,1.24205585,160.58,160.55,0.1]
[1721222331313,1.24205585,160.57,160.55,0.1]
[1721222332018,6.2282,160.56,160.55,0.1]
[1721222332312,51.2282,160.56,160.55,0.1]
[1721222333094,45.0,160.56,160.55,0.1]
[1721222333300,6.2277,160.58,160.55,0.1]
[1721222333513,7.46995585,160.57,160.55,0.1]
[1721222334505,1.24205585,160.56,160.55,0.1]
[1721222334822,102.85008414,160.72,160.55,0.1]
[1721222334823,1.24205585,160.62,160.55,0.1]
[1721222335039,6.2266,160.6,160.55,0.1]
[1721222335323,7.46935585,160.59,160.55,0.1]
[1721222335499,75.02968752,160.64,160.55,0.1]
[1721222335500,7.46945585,160.58,160.55,0.1]
[1721222335699,1.24205585,160.57,160.55,0.1]
[1721222336417,6.2282,160.56,160.55,0.1]
[1721222336611,51.2282,160.56,160.55,0.1]
[1721222336809,71.2282,160.56,160.55,0.1]
[1721222337016,6.2297,160.53,160.46,30.0]
[1721222337248,46.24205585,160.52,160.46,30.0]
[1721222337519,1.24205585,160.51,160.4,46.1863]
[1721222337718,1.24205585,160.51,160.41,7.21499435]
[1721222337928,1.24205585,160.51,160.42,30.0]
[1721222338099,1.24205585,160.51,160.43,1.24615458]
[1721222338295,1.24205585,160.51,160.42,30.0]
[1721222338500,6.2305,160.5,160.42,30.0]
[1721222338800,46.24205585,160.49,160.42,32.2140927]
[1721222339402,45.0,160.5,160.42,32.2140927]
[1721222339741,1.24205585,160.49,160.42,32.2140927]
[1721222340714,45.0,160.5,160.42,32.2140927]
[1721222341025,1.24205585,160.49,160.42,32.2140927]
[1721222341929,1.24205585,160.5,160.43,1.24627395]
[1721222342126,1.24205585,160.5,160.44,30.0]
[1721222342422,1.24205585,160.5,160.45,1.24625103]
[1721222342633,46.24205585,160.51,160.46,1.24625103]
[1721222342938,20.0,160.52,160.46,1.24625103]
[1721222343236,1.24205585,160.52,160.46,1.24625103]
[1721222343408,1.24205585,160.52,160.47,30.0]
[1721222343605,1.24205585,160.52,160.48,1.24611875]
[1721222344208,15.5719,160.55,160.47,30.0]
[1721222344429,6.2298,160.52,160.47,30.0]
[1721222344639,7.47215585,160.51,160.47,30.0]
[1721222344941,6.2298,160.52,160.47,30.0]
[1721222345122,45.0,160.51,160.47,30.0]
[1721222345307,52.47225585,160.51,160.47,30.0]
[1721222345507,46.24205585,160.51,160.47,30.0]
[1721222346014,6.2306,160.5,160.47,30.0]
[1721222346336,6.2313,160.48,160.47,30.0]
[1721222346512,6.2313,160.48,160.42,2.2140927]
[1721222346714,1.24205585,160.47,160.43,30.0]
[1721222347281,7.47375585,160.47,160.43,30.0]
[1721222347408,6.2314,160.48,160.42,2.2140927]
[1721222348110,6.2314,160.48,160.43,1.24650196]
[1721222348326,51.2318,160.47,160.42,2.2140927]
[1721222348532,6.231,160.49,160.43,1.24656707]
[1721222348832,1.24205585,160.48,160.43,1.24656707]
[1721222349144,52.47345585,160.48,160.42,2.2140927]
[1721222349328,46.24205585,160.48,160.43,1.24650847]
[1721222349642,1.24205585,160.49,160.43,1.24650847]
[1721222349803,1.24205585,160.48,160.43,1.24650847]
[1721222350004,1.24205585,160.48,160.42,2.2140927]
[1721222350445,1.24205585,160.48,160.42,3.46053683]
[1721222350616,7.47365585,160.48,160.42,3.46053683]
[1721222351011,1.24205585,160.48,160.43,1.24651568]
[1721222351418,1.24205585,160.48,160.42,3.46051386]
[1721222351719,1.24205585,160.48,160.42,2.2140927]
[1721222351933,6.2319,160.47,160.42,2.2140927]
[1721222352145,1.24205585,160.46,160.42,2.2140927]
[1721222352320,6.2314,160.48,160.42,2.2140927]
[1721222352321,1.24205585,160.45,160.42,2.2140927]
[1721222353114,1.24205585,160.46,160.42,2.2140927]
[1721222353328,6.2066,160.5,160.42,2.2140927]
[1721222353329,1.24205585,160.5,160.42,2.2140927]
[1721222353537,1.24205585,160.52,160.42,2.2140927]
[1721222353732,1.24205585,160.51,160.43,1.2462593]
[1721222353920,1.24205585,160.51,160.42,2.2140927]
[1721222354117,1.24205585,160.51,160.43,31.24627118]
[1721222354843,6.2297,160.52,160.43,31.24627118]
[1721222355144,1.24205585,160.54,160.45,22.7381]
[1721222355331,1.24205585,160.54,160.46,1.2459635]
[1721222355520,1.24205585,160.54,160.45,52.7381]
[1721222355913,6.2299,160.52,160.45,52.7381]
[1721222356133,29.84336388,160.58,160.45,52.7381]
[1721222356134,1.24205585,160.51,160.45,52.7381]
[1721222356331,7.47225585,160.51,160.46,30.0]
[1721222356544,1.24205585,160.5,160.46,30.0]
[1721222357250,1.24205585,160.5,160.45,16.4982]
[1721222357742,7.47185585,160.52,160.45,16.4982]
[1721222357917,1.24205585,160.51,160.45,16.4982]
[1721222358420,6.2308,160.5,160.43,1.24625364]
[1721222358621,46.24205585,160.49,160.44,30.0]
[1721222358822,1.24205585,160.48,160.44,30.0]
[1721222360441,7.47345585,160.48,160.44,30.0]
[1721222360650,1.24205585,160.48,160.44,30.0]
[1721222361444,7.47335585,160.48,160.42,2.2140927]
[1721222361623,1.24205585,160.48,160.42,2.2140927]
[1721222362131,7.47335585,160.48,160.42,2.2140927]
[1721222362330,7.47335585,160.48,160.43,30.0]
[1721222362524,7.47335585,160.48,160.42,2.2140927]
[1721222363247,1.24205585,160.48,160.42,2.2140927]
[1721222363444,1.24205585,160.48,160.43,1.24654737]
[1721222364631,7.47335585,160.48,160.42,2.2140927]
[1721222365047,6.2317,160.47,160.42,2.2140927]
[1721222365356,1.24205585,160.46,160.42,2.2140927]
[1721222365537,1.24205585,160.48,160.42,2.2140927]
[1721222366049,1.24205585,160.48,160.42,3.46061161]
[1721222366847,7.47335585,160.48,160.42,3.46061161]
[1721222367048,7.47335585,160.48,160.42,2.2140927]
[1721222367232,1.24205585,160.48,160.43,1.24654118]
[1721222369049,1.24205585,160.48,160.43,3.46063388]
[1721222369238,1.24205585,160.48,160.43,2.2140927]
[1721222369439,1.24205585,160.48,160.43,3.46054856]
[1721222370428,1.24205585,160.48,160.43,2.2140927]
[1721222370628,46.24205585,160.49,160.43,3.46054796]
[1721222370850,1.24205585,160.48,160.43,3.46054796]
[1721222371155,7.47345585,160.48,160.43,2.2140927]
[1721222372554,1.24205585,160.48,160.43,3.46055203]
[1721222372926,1.24205585,160.48,160.43,2.2140927]
[1721222373431,6.2325,160.45,160.43,2.2140927]
[1721222373643,1.24205585,160.44,160.43,2.2140927]
[1721222374155,7.47485585,160.44,160.43,2.2140927]
[1721222374344,6.2328,160.44,160.43,2.2140927]
[1721222374544,6.2325,160.45,160.43,2.2140927]
[1721222374746,1.24205585,160.44,160.43,2.2140927]
[1721222375547,7.47485585,160.44,160.43,2.2140927]
[1721222375747,51.2328,160.44,160.43,2.2140927]
[1721222378742,6.4926,160.46,160.43,2.2140927]
[1721222378963,1.24205585,160.45,160.43,2.2140927]
[1721222379147,6.2322,160.46,160.43,2.2140927]
[1721222379472,1.24205585,160.49,160.43,2.2140927]
[1721222379646,1.24205585,160.49,160.44,1.24637102]
[1721222380352,13.51005585,160.5,160.44,1.24637102]
[1721222380667,6.2309,160.49,160.44,30.0]
[1721222380843,1.24205585,160.48,160.44,30.0]
[1721222381244,1.24205585,160.48,160.44,31.24637158]
[1721222381676,1.24205585,160.49,160.44,31.24637158]
[1721222381879,1.24205585,160.5,160.44,31.24637158]
[1721222382171,1.24205585,160.5,160.43,2.2140927]
[1721222382366,7.47265585,160.5,160.43,2.2140927]
[1721222382565,1.24205585,160.5,160.43,2.2140927]
[1721222382873,1.24205585,160.53,160.43,2.2140927]
[1721222383073,1.24205585,160.53,160.44,1.24637344]
[1721222383442,1.24205585,160.53,160.43,2.2140927]
[1721222383742,1.24205585,160.53,160.44,1.24628839]
[1721222383945,1.24205585,160.53,160.43,2.2140927]